fUST/lending_fUST_20251207
["ID","MTS","AMOUNT","RATE_DAILY","PERIOD"]
[396640665,1765082212033,1575.23913852,6.318e-05,2]
[396640666,1765082212116,1575.23913852,6.318e-05,2]
[396640667,1765082212199,1575.23913852,6.318e-05,2]
[396640668,1765082212721,1575.23913852,6.318e-05,2]
[396640669,1765082222359,300.0,6.318e-05,2]
[396640670,1765082222440,1023.11576321,6.318e-05,2]
[396640671,1765082222466,227.80943503,6.318e-05,2]
[396640672,1765082222530,1250.92519824,6.318e-05,2]
[396640673,1765082222571,1250.92519824,6.318e-05,2]
[396640674,1765082222611,1250.92519824,6.318e-05,2]
[396640675,1765082222682,1250.92519824,6.318e-05,2]
[396640676,1765082222978,1250.92519824,6.318e-05,2]
[396640677,1765082223177,1250.92519824,6.318e-05,2]
[396640678,1765082223223,1250.92519824,6.318e-05,2]
[396640679,1765082223264,1015.72417729,6.318e-05,2]
[396640680,1765082223290,235.20102095,6.318e-05,2]
[396640681,1765082223345,1250.92519824,6.318e-05,2]
[396640682,1765082224026,1250.92519824,6.318e-05,2]
[396640683,1765082241507,735.29993359,6.318e-05,2]
[396640684,1765082241574,735.29993359,6.318e-05,2]
[396640685,1765082241899,735.29993359,6.318e-05,2]
[396640686,1765082242094,735.29993359,6.318e-05,2]
[396640687,1765082242271,735.29993359,6.318e-05,2]
[396640688,1765082242391,735.29993359,6.318e-05,2]
[396640689,1765082242449,735.29993359,6.318e-05,2]
[396640690,1765082242576,735.29993359,6.318e-05,2]
[396640691,1765082245319,500.0,6.318e-05,2]
[396640692,1765082245370,171.00136469,6.318e-05,2]
[396640693,1765082245503,502.67737913,6.318e-05,2]
[396640694,1765082245572,206.88037003,6.318e-05,2]
[396640695,1765082245597,293.11962997,6.318e-05,2]
[396640696,1765082247723,218.90570405,6.318e-05,2]
[396640697,1765082247760,539.47504819,6.318e-05,2]
[396640698,1765082253913,1101.25019674,6.318e-05,2]
[396640699,1765082254067,1101.25019674,6.318e-05,2]
[396640700,1765082282389,300.0,6.318e-05,2]
[396640701,1765082290446,1468.6832138,5.66e-05,2]
[396640702,1765082329853,206.86885331,6.219e-05,2]
[396640704,1765082402418,300.0,6.318e-05,2]
[396640705,1765082409522,1200.0,6.318e-05,2]
[396640706,1765082462338,300.0,6.318e-05,2]
[396640707,1765082473687,500.0,6.318e-05,2]
[396640708,1765082476569,435.49425378,6.318e-05,2]
[396640709,1765082491218,500.0,6.318e-05,2]
[396640710,1765082491271,500.0,6.318e-05,2]
[396640711,1765082505919,173.26,6.193e-05,2]
[396640712,1765082509012,500.0,6.318e-05,2]
[396640713,1765082509060,356.99969525,6.318e-05,2]
[396640714,1765082522372,4.70320817,6.318e-05,2]
[396640715,1765082522398,295.29679183,6.318e-05,2]
[396640716,1765082524659,500.0,6.318e-05,2]
[396640717,1765082524798,500.0,6.318e-05,2]
[396640718,1765082542844,500.0,6.318e-05,2]
[396640719,1765082543090,500.0,6.318e-05,2]
[396640720,1765082543136,500.0,6.318e-05,2]
[396640721,1765082561481,500.0,6.318e-05,2]
[396640722,1765082561537,500.0,6.318e-05,2]
[396640723,1765082561602,488.80859087,6.318e-05,2]
[396640724,1765082579576,500.0,6.318e-05,2]
[396640725,1765082579664,500.0,6.318e-05,2]
[396640726,1765082579694,338.93999046,6.318e-05,2]
[396640727,1765082582346,300.0,6.318e-05,2]
[396640728,1765082597687,500.0,6.318e-05,2]
[396640729,1765082597734,500.0,6.318e-05,2]
[396640730,1765082597785,500.0,6.318e-05,2]
[396640731,1765082616386,500.0,6.318e-05,2]
[396640732,1765082616420,500.0,6.318e-05,2]
[396640733,1765082616452,500.0,6.318e-05,2]
[396640734,1765082634348,500.0,6.318e-05,2]
[396640735,1765082634401,500.0,6.318e-05,2]
[396640736,1765082634454,76.96462684,6.318e-05,2]
[396640737,1765082634477,423.03537316,6.318e-05,2]
[396640738,1765082642391,300.0,6.318e-05,2]
[396640739,1765082652137,500.0,6.318e-05,2]
[396640740,1765082652188,500.0,6.318e-05,2]
[396640741,1765082652247,500.0,6.318e-05,2]
[396640742,1765082652300,300.0,6.318e-05,2]
[396640743,1765082702308,300.0,6.318e-05,2]
[396640744,1765082709145,1200.0,6.318e-05,2]
[396640745,1765082742451,155.0,0.000174,45]
[396640746,1765082757113,155.0,0.000211,99]
[396640747,1765082762611,300.0,6.318e-05,2]
[396640748,1765082777287,155.0,0.000165,59]
[396640749,1765082786454,155.0,0.0001525,29]
[396640750,1765082789455,-151.99883395,6.319e-05,2]
[396640751,1765082791667,-151.33,6.319e-05,2]
[396640752,1765082793144,-296.72483493,6.319e-05,2]
[396640753,1765082804373,-302.05,6.319e-05,2]
[396640754,1765082805058,155.0,0.000203,120]
[396640755,1765082806277,-413.49271773,6.319e-05,2]
[396640756,1765082808905,-176.24101114,6.319e-05,2]
[396640757,1765082811083,-151.05,6.319e-05,2]
[396640758,1765082812633,-243.47442441,6.319e-05,2]
[396640759,1765082814702,-169.63592332,6.319e-05,2]
[396640760,1765082822486,300.0,6.318e-05,2]
[396640761,1765082834912,-300.0,6.319e-05,2]
[396640762,1765082838283,-562.43420098,6.319e-05,2]
[396640763,1765082840441,-248.75728919,6.319e-05,2]
[396640764,1765082842065,-286.47767855,6.319e-05,2]
[396640765,1765082843595,-179.2736605,6.319e-05,2]
[396640766,1765082849346,-155.48290866,6.319e-05,2]
[396640767,1765082864537,-216.58187174,6.319e-05,2]
[396640768,1765082866556,-309.20222697,6.319e-05,2]
[396640769,1765082874382,5376.97462684,6.219e-05,2]
[396640770,1765082874409,10000.01,6.219e-05,2]
[396640771,1765082874435,10000.01,6.219e-05,2]
[396640772,1765082874461,10000.01,6.219e-05,2]
[396640773,1765082874486,10000.01,6.219e-05,2]
[396640774,1765082874511,10000.01,6.219e-05,2]
[396640775,1765082874538,10000.01,6.219e-05,2]
[396640776,1765082874564,10000.01,6.219e-05,2]
[396640777,1765082874591,10000.01,6.219e-05,2]
[396640778,1765082874616,10000.01,6.219e-05,2]
[396640779,1765082879439,-298.63607109,6.219e-05,2]
[396640780,1765082885143,-261.56317189,6.218e-05,2]
[396640781,1765082887185,-38.43682811,6.218e-05,2]
[396640782,1765082887210,-112.56317189,6.218e-05,2]
[396640783,1765082889961,-187.43682811,6.218e-05,2]
[396640784,1765082889987,-13.9271008,6.219e-05,2]
[396640785,1765082892734,-288.37092348,6.219e-05,2]
[396640786,1765082894478,-174.27929332,6.219e-05,2]
[396640787,1765082897568,-285.11274756,6.217e-05,2]
[396640788,1765082909483,-241.23703564,6.217e-05,2]
[396640789,1765082913284,-186.02865353,6.217e-05,2]
[396640790,1765082914788,-217.29391882,6.217e-05,2]
[396640791,1765082918051,-285.62627834,6.217e-05,2]
[396640792,1765082919553,-219.73287126,6.217e-05,2]
[396640793,1765082922619,-311.05114931,6.217e-05,2]
[396640794,1765082923747,-500.0,6.216e-05,2]
[396640795,1765082923778,-500.0,6.216e-05,2]
[396640796,1765082923809,-500.0,6.216e-05,2]
[396640797,1765082923840,-500.0,6.216e-05,2]
[396640798,1765082923877,-340.3661209,6.216e-05,2]
[396640799,1765082923927,-211.0,6.217e-05,2]
[396640800,1765082924120,-1365.6309911,6.217e-05,2]
[396640801,1765082924554,-10000.01,6.217e-05,2]
[396640802,1765082924586,-289.97328757,6.217e-05,2]
[396640803,1765082924616,-1157.36014763,6.218e-05,2]
[396640804,1765082924646,-1157.36014763,6.218e-05,2]
[396640805,1765082924676,-1157.36014763,6.218e-05,2]
[396640806,1765082924706,-1157.36014763,6.218e-05,2]
[396640807,1765082924766,-1157.36014763,6.218e-05,2]
[396640808,1765082924775,-1157.36014763,6.218e-05,2]
[396640809,1765082924784,-1157.36014763,6.218e-05,2]
[396640810,1765082924794,-1157.36014763,6.218e-05,2]
[396640811,1765082924803,-451.15553139,6.218e-05,2]
[396640812,1765082924825,-706.20461624,6.218e-05,2]
[396640813,1765082924835,-1157.36014763,6.218e-05,2]
[396640814,1765082924844,-1157.36014763,6.218e-05,2]
[396640815,1765082924853,-1157.36014763,6.218e-05,2]
[396640816,1765082924867,-1157.36014763,6.218e-05,2]
[396640817,1765082924876,-1157.36014763,6.218e-05,2]
[396640818,1765082924885,-1157.36014763,6.218e-05,2]
[396640819,1765082924895,-1157.36014763,6.218e-05,2]
[396640820,1765082924906,-1157.36014763,6.218e-05,2]
[396640821,1765082924915,-34.92420272,6.218e-05,2]
[396640822,1765082924947,-289.97328757,6.218e-05,2]
[396640823,1765082924984,-832.46265734,6.218e-05,2]
[396640824,1765082925017,-1157.36014763,6.218e-05,2]
[396640825,1765082925050,-1157.36014763,6.218e-05,2]
[396640826,1765082925081,-1157.36014763,6.218e-05,2]
[396640827,1765082925113,-233.56365191,6.218e-05,2]
[396640828,1765082925213,-91.33383838,6.218e-05,2]
[396640829,1765082925227,-161.18224382,6.218e-05,2]
[396640830,1765082925272,-671.28041352,6.218e-05,2]
[396640831,1765082925303,-1157.36014763,6.218e-05,2]
[396640832,1765082925334,-1157.36014763,6.218e-05,2]
[396640833,1765082938330,500.0,6.216e-05,2]
[396640834,1765082938366,3528.00858244,6.218e-05,2]
[396640835,1765082938393,2337.62445032,6.218e-05,2]
[396640836,1765082938472,196.15582472,6.216e-05,2]
[396640837,1765082938516,5865.63303276,6.218e-05,2]
[396640838,1765082938662,1600.5966922,6.218e-05,2]
[396640839,1765082938690,4265.03634056,6.218e-05,2]
[396640840,1765082940043,-179.15044541,6.219e-05,2]
[396640841,1765082943359,-215.10551669,6.219e-05,2]
[396640842,1765082945463,-329.42693693,6.219e-05,2]
[396640843,1765082947026,-244.97180865,6.219e-05,2]
[396640844,1765082947476,300.0,6.218e-05,2]
[396640845,1765082950165,-326.21155818,6.219e-05,2]
[396640846,1765082952833,-211.78772605,6.219e-05,2]
[396640847,1765082954884,-172.32017929,6.219e-05,2]
[396640848,1765082967126,-10139.51316,6.219e-05,2]
[396640849,1765082969446,-185.74975375,6.219e-05,2]
[396640850,1765082971110,-324.04632137,6.219e-05,2]
[396640851,1765082983146,189.9607007,5.721e-05,2]
[396640852,1765082984386,-468.18209299,6.219e-05,2]
[396640853,1765082986520,-221.6882104,6.219e-05,2]
[396640854,1765082988786,-500.0,6.219e-05,2]
[396640855,1765082990347,-210.60091953,6.219e-05,2]
[396640856,1765082991833,-327.85199121,6.219e-05,2]
[396640857,1765082999495,-180.14800879,6.219e-05,2]
[396640858,1765083001684,180.0,6.218e-05,2]
[396640859,1765083002150,300.0,6.218e-05,2]
[396640860,1765083009679,1200.0,6.218e-05,2]
[396640861,1765083014847,-155.67299573,6.219e-05,2]
[396640862,1765083017800,-240.43560067,6.219e-05,2]
[396640863,1765083021106,-300.0,6.219e-05,2]
[396640864,1765083023621,-579.58930058,6.219e-05,2]
[396640865,1765083025857,-275.27572614,6.219e-05,2]
[396640866,1765083031857,260.0406801,6.218e-05,2]
[396640895,1765083032456,-526.66790499,6.219e-05,2]
[396640897,1765083032468,-45759.29548366,6.219e-05,2]
[396640899,1765083032478,-87455.81215918,6.219e-05,2]
[396640904,1765083032519,-1123.02642622,6.219e-05,2]
[396640907,1765083032531,-5873.52126667,6.219e-05,2]
[396640996,1765083038598,-579.00333235,6.219e-05,2]
[396640998,1765083038609,-826.08819371,6.219e-05,2]
[396641004,1765083038653,-3434.98,6.219e-05,2]
[396641011,1765083038710,-2500.0,6.219e-05,2]
[396641013,1765083038721,-30894.76452898,6.219e-05,2]
[396641301,1765083041734,-3e-08,6.219e-05,2]
[396641475,1765083043383,-300.0,6.219e-05,2]
[396641799,1765083046622,-765.71456297,6.219e-05,2]
[396643083,1765083060446,-453.22945386,6.219e-05,2]
[396643275,1765083062266,300.0,6.218e-05,2]
[396643298,1765083062508,-182.04172186,6.219e-05,2]
[396643319,1765083062729,300.0,6.218e-05,2]
[396643442,1765083063980,-246.82715906,6.219e-05,2]
[396643712,1765083066904,405.57051989,6.218e-05,2]
[396643717,1765083066936,500.0,6.218e-05,2]
[396643725,1765083067010,191.08208251,6.218e-05,2]
[396643739,1765083067128,-256.87988646,6.219e-05,2]
[396643769,1765083067492,1136.98004227,6.218e-05,2]
[396643774,1765083067526,471.33963397,6.218e-05,2]
[396643777,1765083067552,665.6404083,6.218e-05,2]
[396643784,1765083067606,1136.98004227,6.218e-05,2]
[396643790,1765083067651,1136.98004227,6.218e-05,2]
[396643795,1765083067684,1136.98004227,6.218e-05,2]
[396643799,1765083067717,1136.98004227,6.218e-05,2]
[396643807,1765083067776,1136.98004227,6.218e-05,2]
[396643813,1765083067825,1136.98004227,6.218e-05,2]
[396643822,1765083067898,1136.98004227,6.218e-05,2]
[396643832,1765083067986,1136.98004227,6.218e-05,2]
[396643839,1765083068041,238.52925354,6.218e-05,2]
[396643843,1765083068068,898.45078873,6.218e-05,2]
[396643848,1765083068112,1136.98004227,6.218e-05,2]
[396643856,1765083068173,1136.98004227,6.218e-05,2]
[396643860,1765083068209,1136.98004227,6.218e-05,2]
[396643865,1765083068243,1136.98004227,6.218e-05,2]
[396643872,1765083068297,1136.98004227,6.218e-05,2]
[396643918,1765083068717,1136.98004227,6.218e-05,2]
[396643922,1765083068750,-161.06554237,6.219e-05,2]
[396643931,1765083068825,1136.98004227,6.218e-05,2]
[396643937,1765083068868,1136.98004227,6.218e-05,2]
[396643944,1765083068932,5.71887311,6.218e-05,2]
[396643948,1765083068960,1131.26116916,6.218e-05,2]
[396644041,1765083069835,-274.75222852,6.219e-05,2]
[396644274,1765083072332,-283.73409991,6.219e-05,2]
[396644431,1765083073878,-423.1959537,6.219e-05,2]
[396644579,1765083075358,-270.27895676,6.219e-05,2]
[396644728,1765083077071,-188.12795238,6.219e-05,2]
[396644883,1765083078836,727.66722705,6.218e-05,2]
[396644888,1765083078871,727.66722705,6.218e-05,2]
[396644893,1765083078913,727.66722705,6.218e-05,2]
[396644900,1765083078978,727.66722705,6.218e-05,2]
[396644907,1765083079031,727.66722705,6.218e-05,2]
[396644919,1765083079142,727.66722705,6.218e-05,2]
[396644956,1765083079479,727.66722705,6.218e-05,2]
[396644962,1765083079532,-154.99,6.219e-05,2]
[396644969,1765083079581,727.66722705,6.218e-05,2]
[396644975,1765083079626,727.66722705,6.218e-05,2]
[396644981,1765083079680,727.66722705,6.218e-05,2]
[396645024,1765083080100,727.66722705,6.218e-05,2]
[396645037,1765083080208,727.66722705,6.218e-05,2]
[396645057,1765083080390,136.74210624,6.218e-05,2]
[396645061,1765083080417,590.92512081,6.218e-05,2]
[396645176,1765083081518,-170.93,6.219e-05,2]
[396645223,1765083082714,500.0,6.218e-05,2]
[396645224,1765083082775,500.0,6.218e-05,2]
[396645225,1765083082826,500.0,6.218e-05,2]
[396645226,1765083082889,533.85600172,6.218e-05,2]
[396645253,1765083090557,500.0,6.218e-05,2]
[396645254,1765083090614,642.9263414,6.218e-05,2]
[396645255,1765083102984,500.0,6.218e-05,2]
[396645256,1765083103094,500.0,6.218e-05,2]
[396645257,1765083103244,500.0,6.218e-05,2]
[396645258,1765083103410,175.6012904,6.218e-05,2]
[396645259,1765083105889,242.782,6.095e-05,2]
[396645260,1765083111342,500.0,6.218e-05,2]
[396645261,1765083122588,300.0,6.218e-05,2]
[396645262,1765083154104,750.0,6.218e-05,2]
[396645263,1765083154357,750.0,6.218e-05,2]
[396645264,1765083154519,750.0,6.218e-05,2]
[396645265,1765083156873,500.0,6.218e-05,2]
[396645266,1765083156919,500.0,6.218e-05,2]
[396645267,1765083157225,263.91924567,6.218e-05,2]
[396645268,1765083157248,341.13399839,6.218e-05,2]
[396645269,1765083157295,500.0,6.218e-05,2]
[396645270,1765083301505,300.0,6.218e-05,2]
[396645271,1765083302491,300.0,6.218e-05,2]
[396645272,1765083302529,300.0,6.218e-05,2]
[396645273,1765083308541,300.0,6.218e-05,2]
[396645274,1765083309330,1200.0,6.218e-05,2]
[396645275,1765083362819,300.0,6.218e-05,2]
[396645277,1765083422688,300.0,6.218e-05,2]
[396645278,1765083482791,300.0,6.218e-05,2]
[396645279,1765083542594,300.0,6.218e-05,2]
[396645280,1765083608585,153.40584631,6.219e-05,2]
[396645281,1765083610414,315.0,6.218e-05,2]
[396645282,1765083613283,997.74779035,6.219e-05,2]
[396645283,1765083615910,310.26643614,6.219e-05,2]
[396645285,1765083616370,1792.5184726,6.219e-05,2]
[396645286,1765083619046,152.63882303,6.219e-05,2]
[396645288,1765083651583,-7809.30005074,6.219e-05,2]
[396645289,1765083651607,-10000.01,6.219e-05,2]
[396645290,1765083705881,194.226,6.095e-05,2]
[396645291,1765083830749,212.2296424,5.441e-05,2]
[396645292,1765083901849,9593.5543576,6.119e-05,2]
[396645293,1765083901876,10000.01,6.119e-05,2]
[396645294,1765083901902,10000.01,6.119e-05,2]
[396645295,1765083901929,10000.01,6.119e-05,2]
[396645296,1765083901956,10000.01,6.119e-05,2]
[396645297,1765083901983,10000.01,6.119e-05,2]
[396645298,1765083902009,10000.01,6.119e-05,2]
[396645299,1765083902036,10000.01,6.119e-05,2]
[396645300,1765083902063,10000.01,6.119e-05,2]
[396645301,1765083909566,-10000.01,6.119e-05,2]
[396645302,1765083909670,-10000.01,6.119e-05,2]
[396645303,1765083909812,-10000.01,6.119e-05,2]
[396645304,1765083909961,-10000.01,6.119e-05,2]
[396645305,1765083910111,-10000.01,6.119e-05,2]
[396645306,1765083910343,-10000.01,6.119e-05,2]
[396645307,1765083916740,-10000.01,6.119e-05,2]
[396645308,1765083916969,-10000.01,6.119e-05,2]
[396645309,1765083917139,-10000.01,6.119e-05,2]
[396645310,1765083917429,-10000.01,6.119e-05,2]
[396645311,1765083917475,-10000.01,6.119e-05,2]
[396645312,1765083917575,-10000.01,6.119e-05,2]
[396645313,1765083917709,-10000.01,6.119e-05,2]
[396645314,1765083917815,-10000.01,6.119e-05,2]
[396645315,1765083917918,-10000.01,6.119e-05,2]
[396645316,1765083918038,-10000.01,6.119e-05,2]
[396645317,1765083918139,-10000.01,6.119e-05,2]
[396645318,1765083918630,-10000.01,6.119e-05,2]
[396645319,1765083918653,-10000.01,6.119e-05,2]
[396645320,1765083918682,-10000.01,6.119e-05,2]
[396645321,1765083918748,-10000.01,6.119e-05,2]
[396645322,1765083972407,-300.0,6.118e-05,2]
[396645323,1765083972435,-300.0,6.118e-05,2]
[396645324,1765084005115,-171.12583503,6.119e-05,2]
[396645325,1765084019152,1181.50367848,6.118e-05,2]
[396645326,1765084022266,300.0,6.118e-05,2]
[396645327,1765084078867,483.0,6.118e-05,2]
[396645328,1765084082323,300.0,6.118e-05,2]
[396645347,1765084142772,300.0,6.118e-05,2]
[396645348,1765084163635,500.0,6.118e-05,2]
[396645349,1765084163665,500.0,6.118e-05,2]
[396645350,1765084163696,500.0,6.118e-05,2]
[396645351,1765084163735,500.0,6.118e-05,2]
[396645352,1765084163765,500.0,6.118e-05,2]
[396645353,1765084163795,500.0,6.118e-05,2]
[396645354,1765084163826,500.0,6.118e-05,2]
[396645355,1765084163879,500.0,6.118e-05,2]
[396645356,1765084163910,500.0,6.118e-05,2]
[396645357,1765084163958,500.0,6.118e-05,2]
[396645358,1765084164004,500.0,6.118e-05,2]
[396645359,1765084164035,500.0,6.118e-05,2]
[396645360,1765084164077,302.89855868,6.118e-05,2]
[396645361,1765084184457,1132.60776284,6.118e-05,2]
[396645362,1765084184481,442.06183996,6.118e-05,2]
[396645363,1765084184513,1574.6696028,6.118e-05,2]
[396645364,1765084184544,1574.6696028,6.118e-05,2]
[396645365,1765084184590,1574.6696028,6.118e-05,2]
[396645366,1765084184625,1574.6696028,6.118e-05,2]
[396645367,1765084184667,1574.6696028,6.118e-05,2]
[396645368,1765084184710,1574.6696028,6.118e-05,2]
[396645369,1765084184744,109.93054324,6.118e-05,2]
[396645370,1765084184770,1464.73905956,6.118e-05,2]
[396645371,1765084184805,1574.6696028,6.118e-05,2]
[396645372,1765084184914,1574.6696028,6.118e-05,2]
[396645373,1765084184951,1574.6696028,6.118e-05,2]
[396645374,1765084184984,1574.6696028,6.118e-05,2]
[396645375,1765084185029,1574.6696028,6.118e-05,2]
[396645376,1765084185164,661.92292644,6.118e-05,2]
[396645377,1765084185192,912.74667636,6.118e-05,2]
[396645378,1765084185232,1574.6696028,6.118e-05,2]
[396645379,1765084185307,1574.6696028,6.118e-05,2]
[396645380,1765084185457,1574.6696028,6.118e-05,2]
[396645381,1765084196500,1139.31977143,6.118e-05,2]
[396645382,1765084196554,1139.31977143,6.118e-05,2]
[396645383,1765084196600,1139.31977143,6.118e-05,2]
[396645384,1765084196640,945.29520095,6.118e-05,2]
[396645385,1765084196665,194.02457048,6.118e-05,2]
[396645386,1765084196765,1139.31977143,6.118e-05,2]
[396645387,1765084196839,1139.31977143,6.118e-05,2]
[396645388,1765084196943,1139.31977143,6.118e-05,2]
[396645389,1765084196987,1139.31977143,6.118e-05,2]
[396645390,1765084197112,1139.31977143,6.118e-05,2]
[396645391,1765084197211,1139.31977143,6.118e-05,2]
[396645392,1765084197287,1139.31977143,6.118e-05,2]
[396645393,1765084197330,1139.31977143,6.118e-05,2]
[396645394,1765084197484,500.0,6.118e-05,2]
[396645395,1765084197537,181.01679913,6.118e-05,2]
[396645396,1765084197734,10.41045895,6.118e-05,2]
[396645397,1765084197758,1128.90931248,6.118e-05,2]
[396645398,1765084214090,500.0,6.118e-05,2]
[396645399,1765084214134,500.0,6.118e-05,2]
[396645400,1765084214199,625.58381352,6.118e-05,2]
[396645401,1765084214237,625.58381352,6.118e-05,2]
[396645402,1765084214284,274.08836382,6.118e-05,2]
[396645403,1765084214321,625.58381352,6.118e-05,2]
[396645404,1765084214401,625.58381352,6.118e-05,2]
[396645405,1765084214521,625.58381352,6.118e-05,2]
[396645406,1765084214575,625.58381352,6.118e-05,2]
[396645407,1765084214740,625.58381352,6.118e-05,2]
[396645408,1765084224981,500.0,6.118e-05,2]
[396645449,1765084231573,-9778.04895112,6.119e-05,2]
[396645452,1765084231585,-333.18169293,6.119e-05,2]
[396645457,1765084231628,-1521.22208357,6.119e-05,2]
[396645480,1765084231890,187.67514407,6.118e-05,2]
[396645531,1765084237784,-2196.29875058,6.119e-05,2]
[396645533,1765084237795,-861.4296,6.119e-05,2]
[396645543,1765084237894,-63782.68322876,6.119e-05,2]
[396645545,1765084237905,-3811.66792024,6.119e-05,2]
[396645547,1765084237916,-27128.20096962,6.119e-05,2]
[396645550,1765084237928,-10351.22822179,6.119e-05,2]
[396645823,1765084240785,-0.01300655,6.119e-05,2]
[396646031,1765084242976,-19.01398167,6.119e-05,2]
[396646075,1765084243404,500.0,6.118e-05,2]
[396646079,1765084243434,474.50925842,6.118e-05,2]
[396646083,1765084243469,363.61366831,6.118e-05,2]
[396646087,1765084243504,650.52074265,6.118e-05,2]
[396646093,1765084243545,500.0,6.118e-05,2]
[396646099,1765084243601,41.60681561,6.118e-05,2]
[396646102,1765084243624,458.39318439,6.118e-05,2]
[396646108,1765084243673,500.0,6.118e-05,2]
[396646122,1765084243799,500.0,6.118e-05,2]
[396647138,1765084254712,484.88660376,6.118e-05,2]
[396648329,1765084301031,1454.65981129,6.118e-05,2]
[396648330,1765084325249,172.6546488,5.987e-05,2]
[396648331,1765084379623,-535.42832318,6.119e-05,2]
[396648332,1765084382245,-291.89649264,6.119e-05,2]
[396648333,1765084383827,-287.86783038,6.119e-05,2]
[396648334,1765084386159,-194.37963218,6.119e-05,2]
[396648335,1765084390091,-601.87990229,6.119e-05,2]
[396648336,1765084391666,-305.55076006,6.119e-05,2]
[396648337,1765084393679,-377.64704023,6.119e-05,2]
[396648338,1765084396989,-187.93737386,6.119e-05,2]
[396648339,1765084400117,-260.83183474,6.119e-05,2]
[396648340,1765084401293,-234.93666018,6.119e-05,2]
[396648341,1765084405274,-220.46077197,6.119e-05,2]
[396648342,1765084407519,-188.49682959,6.119e-05,2]
[396648343,1765084411632,-185.07562662,6.119e-05,2]
[396648344,1765084414919,-597.58220101,6.119e-05,2]
[396648345,1765084416984,-249.4444737,6.119e-05,2]
[396648346,1765084419717,-378.49379308,6.119e-05,2]
[396648347,1765084421381,-247.16595522,6.119e-05,2]
[396648348,1765084423700,-151.0,6.119e-05,2]
[396648349,1765084427628,-384.40162183,6.119e-05,2]
[396648350,1765084430930,-223.5257658,6.119e-05,2]
[396648351,1765084433667,-156.0,6.119e-05,2]
[396648352,1765084435297,-265.06333982,6.119e-05,2]
[396648353,1765084470041,-154.09575476,6.119e-05,2]
[396648354,1765084472677,-272.06837216,6.119e-05,2]
[396648355,1765084474759,-157.24285756,6.119e-05,2]
[396648356,1765084476850,-300.35265755,6.119e-05,2]
[396648357,1765084478392,-166.21285512,6.119e-05,2]
[396648358,1765084480053,-192.83436738,6.119e-05,2]
[396648359,1765084482806,-194.61801414,6.119e-05,2]
[396648360,1765084484276,-334.11197771,6.119e-05,2]
[396648361,1765084487535,-152.72,6.119e-05,2]
[396648362,1765084491116,-202.34422436,6.119e-05,2]
[396648363,1765084492638,-261.05428655,6.119e-05,2]
[396648364,1765084494148,-300.0,6.119e-05,2]
[396648365,1765084496316,-179.64573251,6.119e-05,2]
[396648366,1765084498556,-268.9579893,6.119e-05,2]
[396648367,1765084501797,-476.56959832,6.119e-05,2]
[396648368,1765084504487,-286.62579853,6.119e-05,2]
[396648369,1765084506130,-189.03337398,6.119e-05,2]
[396648370,1765084508592,-297.89246289,6.119e-05,2]
[396648371,1765084510140,-483.41840718,6.119e-05,2]
[396648372,1765084513071,-312.26497147,6.119e-05,2]
[396648373,1765084515438,-385.65207547,6.119e-05,2]
[396648374,1765084518568,-394.04902969,6.119e-05,2]
[396648375,1765084522412,-298.61865185,6.119e-05,2]
[396648376,1765084524624,-269.65409042,6.119e-05,2]
[396648377,1765084528243,-151.21737776,6.119e-05,2]
[396648378,1765084530411,-613.39432335,6.119e-05,2]
[396648379,1765084532053,-158.24064033,6.119e-05,2]
[396648380,1765084533708,-161.57926918,6.119e-05,2]
[396648381,1765084535590,-249.37986527,6.119e-05,2]
[396648382,1765084537947,-214.86638172,6.119e-05,2]
[396648383,1765084539213,-279.72248607,6.119e-05,2]
[396648384,1765084540758,-220.61788613,6.119e-05,2]
[396648385,1765084542237,-155.76528857,6.119e-05,2]
[396648386,1765084544957,-424.663942,6.119e-05,2]
[396648387,1765084547756,-292.39362416,6.119e-05,2]
[396648388,1765084550507,-309.63688295,6.119e-05,2]
[396648389,1765084551935,-152.46583277,6.119e-05,2]
[396648390,1765084554466,-474.05053641,6.119e-05,2]
[396648391,1765084556265,-272.52929848,6.119e-05,2]
[396648392,1765084558856,-233.54778565,6.119e-05,2]
[396648393,1765084561258,-382.31628849,6.119e-05,2]
[396648395,1765084562468,-337.27672743,6.119e-05,2]
[396648396,1765084564904,-160.26,6.119e-05,2]
[396648397,1765084567686,-196.80918333,6.119e-05,2]
[396648398,1765084570034,-162.90995115,6.119e-05,2]
[396648399,1765084572096,-333.96973815,6.119e-05,2]
[396648401,1765084918463,6429.41575176,6.019e-05,2]